[Event "Live Chess"]
[Site "Chess.com"]
[Date "2011.01.04"]
[Round "-"]
[White "hipposcottimus"]
[Black "AKIISSA"]
[Result "0-1"]
[CurrentPosition "2k2b1r/pp1b1pp1/3p1n2/2pP4/P1P4p/1PN1r3/1q1BBPPP/R2R2K1 w - -"]
[Timezone "UTC"]
[ECO "C00"]
[ECOUrl "https://www.chess.com/openings/French-Defense-Steiner-Variation-2...c5-3.Nf3"]
[UTCDate "2011.01.04"]
[UTCTime "02:04:16"]
[WhiteElo "1381"]
[BlackElo "1475"]
[TimeControl "600"]
[Termination "AKIISSA won by resignation"]
[StartTime "02:04:16"]
[EndDate "2011.01.04"]
[EndTime "02:12:04"]
[Link "https://www.chess.com/game/live/83984410"]

1. e4 {[%clk 0:10:00]} 1... e6 {[%clk 0:10:00]} 2. c4 {[%clk 0:09:57.6]} 2... c5 {[%clk 0:09:57.7]} 3. Nf3 {[%clk 0:09:53.6]} 3... Nc6 {[%clk 0:09:55.4]} 4. d4 {[%clk 0:09:47.3]} 4... Qa5+ {[%clk 0:09:51.3]} 5. Nc3 {[%clk 0:09:42.4]} 5... Nf6 {[%clk 0:09:39.4]} 6. d5 {[%clk 0:09:40.9]} 6... Nd4 {[%clk 0:09:36]} 7. Bd2 {[%clk 0:09:32.8]} 7... Nxf3+ {[%clk 0:09:30.4]} 8. Qxf3 {[%clk 0:09:31.2]} 8... Qb4 {[%clk 0:09:28]} 9. b3 {[%clk 0:09:20.4]} 9... Qa3 {[%clk 0:09:07.8]} 10. Na4 {[%clk 0:09:07.2]} 10... exd5 {[%clk 0:08:52.3]} 11. exd5 {[%clk 0:08:58.7]} 11... d6 {[%clk 0:08:41]} 12. Bc1 {[%clk 0:08:33.8]} 12... Qb4+ {[%clk 0:08:38.4]} 13. Bd2 {[%clk 0:08:31.7]} 13... Qa3 {[%clk 0:08:37.2]} 14. Bc1 {[%clk 0:08:30.5]} 14... Qb4+ {[%clk 0:08:35.5]} 15. Bd2 {[%clk 0:08:29.7]} 15... Qa3 {[%clk 0:08:34.4]} 16. Be2 {[%clk 0:08:24.6]} 16... Bd7 {[%clk 0:08:31.1]} 17. Bc1 {[%clk 0:08:06.7]} 17... Qb4+ {[%clk 0:08:28.4]} 18. Bd2 {[%clk 0:07:57.4]} 18... Qa3 {[%clk 0:08:27.2]} 19. Nc3 {[%clk 0:07:54.9]} 19... O-O-O {[%clk 0:08:18]} 20. O-O {[%clk 0:07:53]} 20... Re8 {[%clk 0:08:17.1]} 21. Qg3 {[%clk 0:07:37.6]} 21... Qb2 {[%clk 0:08:11.4]} 22. Rfd1 {[%clk 0:07:20.1]} 22... h5 {[%clk 0:07:47.5]} 23. a4 {[%clk 0:06:54.2]} 23... h4 {[%clk 0:07:35.6]} 24. Qe3 {[%clk 0:04:56.2]} 24... Rxe3 {[%clk 0:07:28.4]} 0-1

[Event "Live Chess"]
[Site "Chess.com"]
[Date "2011.01.04"]
[Round "-"]
[White "jzhang9876"]
[Black "hipposcottimus"]
[Result "0-1"]
[CurrentPosition "5rk1/3q2pp/5p2/n7/2rP1Q2/1pP2R2/6PP/1R2B1K1 w - -"]
[Timezone "UTC"]
[ECO "C60"]
[ECOUrl "https://www.chess.com/openings/Ruy-Lopez-Opening"]
[UTCDate "2011.01.04"]
[UTCTime "01:41:48"]
[WhiteElo "1262"]
[BlackElo "1387"]
[TimeControl "480+5"]
[Termination "hipposcottimus won on time"]
[StartTime "01:41:48"]
[EndDate "2011.01.04"]
[EndTime "01:59:50"]
[Link "https://www.chess.com/game/live/83979375"]

1. e4 {[%clk 0:08:00]} 1... e5 {[%clk 0:08:00]} 2. Nf3 {[%clk 0:08:03.7]} 2... Nc6 {[%clk 0:08:00.8]} 3. Bb5 {[%clk 0:08:03.2]} 3... Bd6 {[%clk 0:07:56.9]} 4. Nc3 {[%clk 0:07:49.5]} 4... a6 {[%clk 0:07:59.1]} 5. Be2 {[%clk 0:07:43.6]} 5... Bc5 {[%clk 0:07:56.8]} 6. O-O {[%clk 0:07:34]} 6... Nf6 {[%clk 0:07:55.6]} 7. d3 {[%clk 0:07:32.9]} 7... d5 {[%clk 0:07:53.9]} 8. Bg5 {[%clk 0:07:14.3]} 8... d4 {[%clk 0:07:45.3]} 9. Nd5 {[%clk 0:07:03.7]} 9... Be7 {[%clk 0:07:45]} 10. Nxe7 {[%clk 0:06:35.2]} 10... Qxe7 {[%clk 0:07:46.2]} 11. c3 {[%clk 0:05:47.1]} 11... O-O {[%clk 0:07:35.4]} 12. cxd4 {[%clk 0:05:09.1]} 12... Nxd4 {[%clk 0:07:13.8]} 13. Nxd4 {[%clk 0:05:07.6]} 13... exd4 {[%clk 0:07:17.1]} 14. Qa4 {[%clk 0:05:00.4]} 14... Qd6 {[%clk 0:07:07.7]} 15. f4 {[%clk 0:04:27.1]} 15... Ng4 {[%clk 0:06:56.5]} 16. e5 {[%clk 0:04:03]} 16... Nxe5 {[%clk 0:06:56.6]} 17. Rae1 {[%clk 0:01:59.3]} 17... Nc6 {[%clk 0:06:31.3]} 18. Bf3 {[%clk 0:01:57.3]} 18... b5 {[%clk 0:06:28.7]} 19. Qc2 {[%clk 0:01:41.5]} 19... Bb7 {[%clk 0:06:25.2]} 20. a4 {[%clk 0:01:27]} 20... Rab8 {[%clk 0:06:24.6]} 21. f5 {[%clk 0:00:57.2]} 21... Nb4 {[%clk 0:06:10.9]} 22. Qd2 {[%clk 0:00:54.1]} 22... Bd5 {[%clk 0:05:48.5]} 23. Bxd5 {[%clk 0:00:48.8]} 23... Nxd5 {[%clk 0:05:46.4]} 24. axb5 {[%clk 0:00:37.4]} 24... f6 {[%clk 0:05:44.4]} 25. Bh4 {[%clk 0:00:33.1]} 25... axb5 {[%clk 0:05:47.3]} 26. Bg3 {[%clk 0:00:34.9]} 26... Qd7 {[%clk 0:05:36.5]} 27. Rc1 {[%clk 0:00:33.5]} 27... Rbc8 {[%clk 0:05:35.7]} 28. Rc5 {[%clk 0:00:30.3]} 28... Ne3 {[%clk 0:05:32.2]} 29. Rf3 {[%clk 0:00:23.6]} 29... c6 {[%clk 0:05:23.2]} 30. Bf2 {[%clk 0:00:25.2]} 30... Nxf5 {[%clk 0:05:17.1]} 31. Qf4 {[%clk 0:00:18.4]} 31... Nd6 {[%clk 0:04:58.6]} 32. Bxd4 {[%clk 0:00:18.9]} 32... Nb7 {[%clk 0:04:54.7]} 33. Rc3 {[%clk 0:00:18]} 33... c5 {[%clk 0:04:56.1]} 34. Bf2 {[%clk 0:00:16.1]} 34... c4 {[%clk 0:04:44]} 35. d4 {[%clk 0:00:09.7]} 35... b4 {[%clk 0:04:44.9]} 36. Rc1 {[%clk 0:00:10.6]} 36... c3 {[%clk 0:04:44.6]} 37. bxc3 {[%clk 0:00:11.2]} 37... b3 {[%clk 0:04:44.3]} 38. Rb1 {[%clk 0:00:11.8]} 38... Na5 {[%clk 0:04:46.2]} 39. Be1 {[%clk 0:00:08.9]} 39... Rc4 {[%clk 0:04:39.1]} 0-1

[Event "Live Chess"]
[Site "Chess.com"]
[Date "2011.01.04"]
[Round "-"]
[White "hipposcottimus"]
[Black "jzhang9876"]
[Result "1-0"]
[CurrentPosition "r1bq1b1r/ppp2Qpk/2n3Bp/3np3/8/3P4/PPP2PPP/RNB1K2R b KQ -"]
[Timezone "UTC"]
[ECO "C57"]
[ECOUrl "https://www.chess.com/openings/Italian-Game-Knight-Attack-Polerio-Defense"]
[UTCDate "2011.01.04"]
[UTCTime "01:36:38"]
[WhiteElo "1382"]
[BlackElo "1267"]
[TimeControl "480+5"]
[Termination "hipposcottimus won by checkmate"]
[StartTime "01:36:38"]
[EndDate "2011.01.04"]
[EndTime "01:40:48"]
[Link "https://www.chess.com/game/live/83978387"]

1. e4 {[%clk 0:08:00]} 1... e5 {[%clk 0:08:00]} 2. Nf3 {[%clk 0:08:01.3]} 2... Nc6 {[%clk 0:08:01.7]} 3. Bc4 {[%clk 0:08:05.5]} 3... Nf6 {[%clk 0:07:51.1]} 4. Ng5 {[%clk 0:08:08]} 4... d5 {[%clk 0:07:54.7]} 5. exd5 {[%clk 0:08:09.1]} 5... Na5 {[%clk 0:07:58.4]} 6. Be2 {[%clk 0:08:12.1]} 6... Nxd5 {[%clk 0:07:37.1]} 7. d3 {[%clk 0:08:12.2]} 7... h6 {[%clk 0:07:28.6]} 8. Nxf7 {[%clk 0:07:51]} 8... Kxf7 {[%clk 0:07:29.2]} 9. Bh5+ {[%clk 0:07:52.1]} 9... Kg8 {[%clk 0:07:11.5]} 10. Qf3 {[%clk 0:07:46.3]} 10... Nc6 {[%clk 0:06:20.4]} 11. Qf7+ {[%clk 0:07:45.2]} 11... Kh7 {[%clk 0:06:02.5]} 12. Bg6# {[%clk 0:07:48.6]} 1-0

[Event "Live Chess"]
[Site "Chess.com"]
[Date "2011.01.04"]
[Round "-"]
[White "jzhang9876"]
[Black "hipposcottimus"]
[Result "1-0"]
[CurrentPosition "8/7k/6pp/8/8/6PP/P1Q2P2/6K1 b - -"]
[Timezone "UTC"]
[ECO "C47"]
[ECOUrl "https://www.chess.com/openings/Four-Knights-Game-Italian-Variation"]
[UTCDate "2011.01.04"]
[UTCTime "01:22:19"]
[WhiteElo "1273"]
[BlackElo "1376"]
[TimeControl "480+5"]
[Termination "jzhang9876 won by resignation"]
[StartTime "01:22:19"]
[EndDate "2011.01.04"]
[EndTime "01:36:30"]
[Link "https://www.chess.com/game/live/83975089"]

1. e4 {[%clk 0:08:00]} 1... e5 {[%clk 0:08:00]} 2. Nf3 {[%clk 0:08:03.9]} 2... Nc6 {[%clk 0:08:04.7]} 3. Bc4 {[%clk 0:08:00]} 3... Nf6 {[%clk 0:08:08.8]} 4. Nc3 {[%clk 0:07:48.7]} 4... Bb4 {[%clk 0:07:57.7]} 5. d3 {[%clk 0:07:13.6]} 5... d5 {[%clk 0:07:57.1]} 6. exd5 {[%clk 0:07:13.6]} 6... Nxd5 {[%clk 0:07:58.9]} 7. Bxd5 {[%clk 0:06:40.4]} 7... Qxd5 {[%clk 0:08:00.1]} 8. O-O {[%clk 0:06:43.3]} 8... Bxc3 {[%clk 0:07:38.6]} 9. bxc3 {[%clk 0:06:45.7]} 9... O-O {[%clk 0:07:41.6]} 10. c4 {[%clk 0:06:43.1]} 10... Qd6 {[%clk 0:07:43.6]} 11. h3 {[%clk 0:06:34.4]} 11... f5 {[%clk 0:07:45.7]} 12. Rb1 {[%clk 0:05:51.8]} 12... b6 {[%clk 0:07:11.6]} 13. Rb3 {[%clk 0:05:41]} 13... Bb7 {[%clk 0:06:58.6]} 14. Ba3 {[%clk 0:05:34]} 14... Qg6 {[%clk 0:06:41.1]} 15. Bxf8 {[%clk 0:05:32.2]} 15... Rxf8 {[%clk 0:06:42.9]} 16. Kh2 {[%clk 0:04:33.9]} 16... e4 {[%clk 0:06:40.7]} 17. dxe4 {[%clk 0:04:07.3]} 17... fxe4 {[%clk 0:06:40.4]} 18. Nd4 {[%clk 0:03:44.5]} 18... Qd6+ {[%clk 0:06:36.7]} 19. Kg1 {[%clk 0:03:21.1]} 19... Nxd4 {[%clk 0:06:37.5]} 20. Re3 {[%clk 0:03:12.6]} 20... Qg6 {[%clk 0:06:26.4]} 21. Qxd4 {[%clk 0:02:52]} 21... c5 {[%clk 0:06:28.1]} 22. Qe5 {[%clk 0:02:48]} 22... Rf3 {[%clk 0:06:22.5]} 23. Rxf3 {[%clk 0:02:20.3]} 23... exf3 {[%clk 0:06:24]} 24. g3 {[%clk 0:02:22.7]} 24... h6 {[%clk 0:06:16.8]} 25. Qb8+ {[%clk 0:02:23.4]} 25... Kh7 {[%clk 0:06:15]} 26. Qxb7 {[%clk 0:02:23.8]} 26... Qxc2 {[%clk 0:06:19.6]} 27. Qxf3 {[%clk 0:02:21.4]} 27... Qxc4 {[%clk 0:06:24.3]} 28. Qf5+ {[%clk 0:02:10]} 28... g6 {[%clk 0:06:19.2]} 29. Qd7+ {[%clk 0:02:07.9]} 29... Kg8 {[%clk 0:06:21.5]} 30. Re1 {[%clk 0:02:04.6]} 30... Qf7 {[%clk 0:05:55.8]} 31. Re8+ {[%clk 0:01:51.4]} 31... Kg7 {[%clk 0:05:55.9]} 32. Re7 {[%clk 0:01:53.7]} 32... Qxe7 {[%clk 0:05:57.3]} 33. Qxe7+ {[%clk 0:01:57.3]} 33... Kh8 {[%clk 0:06:01.8]} 34. Qxa7 {[%clk 0:02:00.2]} 34... c4 {[%clk 0:06:05.6]} 35. Qxb6 {[%clk 0:02:03.2]} 35... c3 {[%clk 0:06:10.2]} 36. Qb4 {[%clk 0:02:03.7]} 36... c2 {[%clk 0:06:14.4]} 37. Qb2+ {[%clk 0:02:02.8]} 37... Kh7 {[%clk 0:06:16.2]} 38. Qxc2 {[%clk 0:02:06.6]} 1-0

[Event "Live Chess"]
[Site "Chess.com"]
[Date "2011.01.04"]
[Round "-"]
[White "enney"]
[Black "hipposcottimus"]
[Result "0-1"]
[CurrentPosition "5rk1/p2R2pp/4p3/3pP3/6Q1/3B2K1/P4P2/6rq w - -"]
[Timezone "UTC"]
[ECO "D10"]
[ECOUrl "https://www.chess.com/openings/Slav-Defense-Exchange-Variation-3...cxd5-4.Nf3"]
[UTCDate "2011.01.04"]
[UTCTime "01:15:43"]
[WhiteElo "1093"]
[BlackElo "1386"]
[TimeControl "420"]
[Termination "hipposcottimus won by checkmate"]
[StartTime "01:15:43"]
[EndDate "2011.01.04"]
[EndTime "01:21:24"]
[Link "https://www.chess.com/game/live/83973728"]

1. d4 {[%clk 0:07:00]} 1... d5 {[%clk 0:07:00]} 2. c4 {[%clk 0:06:58.2]} 2... c6 {[%clk 0:06:59.4]} 3. cxd5 {[%clk 0:06:53]} 3... cxd5 {[%clk 0:06:58.3]} 4. Nf3 {[%clk 0:06:50.2]} 4... e6 {[%clk 0:06:56.9]} 5. Nc3 {[%clk 0:06:49.1]} 5... Nf6 {[%clk 0:06:55.7]} 6. Bg5 {[%clk 0:06:43.6]} 6... Bd7 {[%clk 0:06:54.4]} 7. e4 {[%clk 0:06:40.1]} 7... Be7 {[%clk 0:06:52.7]} 8. e5 {[%clk 0:06:37.7]} 8... Ne4 {[%clk 0:06:43.7]} 9. Bxe7 {[%clk 0:06:29.7]} 9... Qxe7 {[%clk 0:06:41.1]} 10. Bd3 {[%clk 0:06:23.1]} 10... Ng5 {[%clk 0:06:31.7]} 11. Bb5 {[%clk 0:06:07.3]} 11... O-O {[%clk 0:06:26.8]} 12. O-O {[%clk 0:05:58.9]} 12... f6 {[%clk 0:06:19.3]} 13. Bd3 {[%clk 0:05:41.6]} 13... f5 {[%clk 0:06:10.8]} 14. h4 {[%clk 0:05:36]} 14... Nxf3+ {[%clk 0:06:07]} 15. Qxf3 {[%clk 0:05:26.6]} 15... Qxh4 {[%clk 0:06:05.4]} 16. Ne2 {[%clk 0:05:08.7]} 16... Nc6 {[%clk 0:06:00.8]} 17. g3 {[%clk 0:05:06.7]} 17... Nxd4 {[%clk 0:05:40.4]} 18. Nxd4 {[%clk 0:04:58.6]} 18... Qxd4 {[%clk 0:05:38]} 19. Rfe1 {[%clk 0:04:52.9]} 19... Qxb2 {[%clk 0:05:34.4]} 20. Rab1 {[%clk 0:04:51.2]} 20... Qd2 {[%clk 0:05:27.2]} 21. Rxb7 {[%clk 0:04:46]} 21... Qxe1+ {[%clk 0:05:25.9]} 22. Kg2 {[%clk 0:04:42.1]} 22... Rac8 {[%clk 0:05:25.2]} 23. Rxd7 {[%clk 0:04:38.4]} 23... Rc1 {[%clk 0:05:21.1]} 24. g4 {[%clk 0:04:16.2]} 24... Qg1+ {[%clk 0:05:16.9]} 25. Kh3 {[%clk 0:04:13.1]} 25... fxg4+ {[%clk 0:05:07.2]} 26. Qxg4 {[%clk 0:03:53.8]} 26... Qh1+ {[%clk 0:04:46.7]} 27. Kg3 {[%clk 0:03:50.5]} 27... Rg1# {[%clk 0:04:42.3]} 0-1

[Event "Live Chess"]
[Site "Chess.com"]
[Date "2011.01.04"]
[Round "-"]
[White "hipposcottimus"]
[Black "mramorak"]
[Result "0-1"]
[CurrentPosition "6r1/1p6/1k1p4/2pP3R/5K1P/8/2N5/6q1 b - -"]
[Timezone "UTC"]
[ECO "C41"]
[ECOUrl "https://www.chess.com/openings/Philidor-Defense-3.d4-Bg4"]
[UTCDate "2011.01.04"]
[UTCTime "00:52:39"]
[WhiteElo "1383"]
[BlackElo "1380"]
[TimeControl "660"]
[Termination "mramorak won by resignation"]
[StartTime "00:52:39"]
[EndDate "2011.01.04"]
[EndTime "01:06:09"]
[Link "https://www.chess.com/game/live/83968062"]

1. e4 {[%clk 0:11:00]} 1... e5 {[%clk 0:11:00]} 2. Nf3 {[%clk 0:10:53.5]} 2... d6 {[%clk 0:10:56.6]} 3. d4 {[%clk 0:10:51.5]} 3... Bg4 {[%clk 0:10:51.3]} 4. Be2 {[%clk 0:10:46.8]} 4... Bxf3 {[%clk 0:10:40.7]} 5. Bxf3 {[%clk 0:10:44.3]} 5... Nc6 {[%clk 0:10:33.8]} 6. d5 {[%clk 0:10:37.4]} 6... Nd4 {[%clk 0:10:29.8]} 7. c4 {[%clk 0:10:28.4]} 7... Nf6 {[%clk 0:10:16.9]} 8. Nc3 {[%clk 0:10:06.9]} 8... a6 {[%clk 0:10:12]} 9. b4 {[%clk 0:10:00.3]} 9... c6 {[%clk 0:09:43.9]} 10. Be3 {[%clk 0:09:46]} 10... Nxf3+ {[%clk 0:09:37.6]} 11. Qxf3 {[%clk 0:09:44.3]} 11... a5 {[%clk 0:09:06.1]} 12. Bd2 {[%clk 0:09:24.1]} 12... axb4 {[%clk 0:09:02.7]} 13. Ne2 {[%clk 0:09:11.9]} 13... c5 {[%clk 0:09:00.6]} 14. O-O {[%clk 0:08:38]} 14... Ra3 {[%clk 0:08:58]} 15. Qf5 {[%clk 0:08:01.8]} 15... g6 {[%clk 0:08:55.6]} 16. Qg5 {[%clk 0:07:55.9]} 16... Nxe4 {[%clk 0:08:46.9]} 17. Qxd8+ {[%clk 0:07:40.6]} 17... Kxd8 {[%clk 0:08:43.7]} 18. Bc1 {[%clk 0:07:38.2]} 18... Ra8 {[%clk 0:08:33.7]} 19. a3 {[%clk 0:07:35.4]} 19... bxa3 {[%clk 0:08:20.5]} 20. Rxa3 {[%clk 0:07:30]} 20... Rxa3 {[%clk 0:08:17.5]} 21. Bxa3 {[%clk 0:07:28.6]} 21... Nd2 {[%clk 0:08:15.4]} 22. Rd1 {[%clk 0:07:22.8]} 22... Nxc4 {[%clk 0:08:12.1]} 23. Rd3 {[%clk 0:07:07.9]} 23... Nxa3 {[%clk 0:08:05.9]} 24. Rxa3 {[%clk 0:07:07.5]} 24... Kc7 {[%clk 0:08:03]} 25. f4 {[%clk 0:07:06.3]} 25... Bg7 {[%clk 0:08:00.3]} 26. Nc3 {[%clk 0:06:52.5]} 26... exf4 {[%clk 0:07:56.7]} 27. Nb5+ {[%clk 0:06:50.3]} 27... Kd7 {[%clk 0:07:49.5]} 28. Ra7 {[%clk 0:06:45.8]} 28... Rb8 {[%clk 0:07:39.8]} 29. Kf2 {[%clk 0:06:42.6]} 29... f5 {[%clk 0:07:11.5]} 30. Kf3 {[%clk 0:06:32.2]} 30... g5 {[%clk 0:07:05.7]} 31. h4 {[%clk 0:06:23.2]} 31... h6 {[%clk 0:07:02.2]} 32. g3 {[%clk 0:06:18.3]} 32... fxg3 {[%clk 0:06:56.7]} 33. Kxg3 {[%clk 0:06:13.3]} 33... Be5+ {[%clk 0:06:53.2]} 34. Kh3 {[%clk 0:06:07.4]} 34... g4+ {[%clk 0:06:47.6]} 35. Kg2 {[%clk 0:06:02.7]} 35... f4 {[%clk 0:06:45]} 36. Na3 {[%clk 0:06:02]} 36... f3+ {[%clk 0:06:34]} 37. Kf1 {[%clk 0:05:55.1]} 37... Kc7 {[%clk 0:06:31.4]} 38. Nc2 {[%clk 0:05:53]} 38... Kb6 {[%clk 0:06:27.5]} 39. Ra4 {[%clk 0:05:50.3]} 39... g3 {[%clk 0:06:20]} 40. Rg4 {[%clk 0:05:40.5]} 40... g2+ {[%clk 0:06:16.2]} 41. Kf2 {[%clk 0:05:39.3]} 41... h5 {[%clk 0:05:54.1]} 42. Rg5 {[%clk 0:05:30.8]} 42... Bf4 {[%clk 0:05:40.3]} 43. Rxh5 {[%clk 0:05:26.3]} 43... Rg8 {[%clk 0:05:37.3]} 44. Kxf3 {[%clk 0:03:21.6]} 44... g1=Q {[%clk 0:05:31.1]} 45. Kxf4 {[%clk 0:03:21.3]} 0-1

[Event "Live Chess"]
[Site "Chess.com"]
[Date "2011.01.04"]
[Round "-"]
[White "mramorak"]
[Black "hipposcottimus"]
[Result "1-0"]
[CurrentPosition "8/8/6k1/p5p1/1P2P2p/P6P/6K1/8 b - b3"]
[Timezone "UTC"]
[ECO "D00"]
[ECOUrl "https://www.chess.com/openings/Queens-Pawn-Opening-1...d5-2.e3-c5"]
[UTCDate "2011.01.04"]
[UTCTime "00:30:25"]
[WhiteElo "1372"]
[BlackElo "1391"]
[TimeControl "660"]
[Termination "mramorak won on time"]
[StartTime "00:30:25"]
[EndDate "2011.01.04"]
[EndTime "00:50:07"]
[Link "https://www.chess.com/game/live/83963017"]

1. d4 {[%clk 0:11:00]} 1... d5 {[%clk 0:11:00]} 2. e3 {[%clk 0:10:53.6]} 2... c5 {[%clk 0:10:42]} 3. c3 {[%clk 0:10:32.5]} 3... cxd4 {[%clk 0:10:35.8]} 4. exd4 {[%clk 0:10:28.6]} 4... Nc6 {[%clk 0:10:33.4]} 5. Nf3 {[%clk 0:10:24.3]} 5... Nf6 {[%clk 0:10:29.7]} 6. Bd3 {[%clk 0:10:18.6]} 6... Bg4 {[%clk 0:10:27.5]} 7. O-O {[%clk 0:10:10.8]} 7... e5 {[%clk 0:10:23.3]} 8. Re1 {[%clk 0:10:01.6]} 8... e4 {[%clk 0:10:18.1]} 9. h3 {[%clk 0:09:31.2]} 9... Bh5 {[%clk 0:10:14]} 10. g4 {[%clk 0:09:27.1]} 10... Nxg4 {[%clk 0:10:11.9]} 11. Bxe4 {[%clk 0:09:20.2]} 11... Nf6 {[%clk 0:09:16.8]} 12. Bxd5+ {[%clk 0:09:05.1]} 12... Be7 {[%clk 0:09:14.5]} 13. Bxc6+ {[%clk 0:08:54.1]} 13... bxc6 {[%clk 0:09:13.9]} 14. Re3 {[%clk 0:08:43.9]} 14... Nd5 {[%clk 0:09:08.4]} 15. Rd3 {[%clk 0:08:34.2]} 15... O-O {[%clk 0:09:04.3]} 16. Qf1 {[%clk 0:08:18.7]} 16... Bxf3 {[%clk 0:08:36.8]} 17. Rxf3 {[%clk 0:08:16.2]} 17... Qd6 {[%clk 0:07:48]} 18. Qg2 {[%clk 0:08:07.9]} 18... f5 {[%clk 0:06:50.4]} 19. Na3 {[%clk 0:07:45.9]} 19... Bh4 {[%clk 0:06:37]} 20. Nc4 {[%clk 0:07:36.9]} 20... Qe6 {[%clk 0:06:01.2]} 21. Ne5 {[%clk 0:07:18.4]} 21... c5 {[%clk 0:05:37]} 22. a3 {[%clk 0:07:01]} 22... Rac8 {[%clk 0:04:56.1]} 23. Bg5 {[%clk 0:06:37.9]} 23... Bxg5 {[%clk 0:04:40.1]} 24. Qxg5 {[%clk 0:06:35.2]} 24... cxd4 {[%clk 0:04:37.5]} 25. cxd4 {[%clk 0:06:31.6]} 25... Nb6 {[%clk 0:03:56]} 26. Rc1 {[%clk 0:06:15.5]} 26... Nc4 {[%clk 0:03:41.1]} 27. Nxc4 {[%clk 0:06:11.6]} 27... Rxc4 {[%clk 0:03:36.9]} 28. Rxc4 {[%clk 0:06:08.9]} 28... Qxc4 {[%clk 0:03:35.1]} 29. Rxf5 {[%clk 0:05:53.9]} 29... Rxf5 {[%clk 0:03:31.1]} 30. Qxf5 {[%clk 0:05:51.7]} 30... Qxd4 {[%clk 0:03:28.8]} 31. Qc8+ {[%clk 0:05:48.2]} 31... Kf7 {[%clk 0:03:24.9]} 32. Qc3 {[%clk 0:05:32.9]} 32... Qb6 {[%clk 0:02:43]} 33. Kg2 {[%clk 0:05:24]} 33... h6 {[%clk 0:02:32.7]} 34. Qf3+ {[%clk 0:05:16.3]} 34... Kg6 {[%clk 0:02:28.8]} 35. Qg3+ {[%clk 0:05:02.7]} 35... Kh7 {[%clk 0:02:21.9]} 36. Qc3 {[%clk 0:04:53.1]} 36... h5 {[%clk 0:02:11.4]} 37. Qc2+ {[%clk 0:04:34.5]} 37... Kh6 {[%clk 0:02:05.4]} 38. Qd2+ {[%clk 0:04:23.4]} 38... g5 {[%clk 0:02:00.8]} 39. Kg3 {[%clk 0:03:52]} 39... Qc7+ {[%clk 0:01:48.2]} 40. Kg2 {[%clk 0:03:44.1]} 40... h4 {[%clk 0:01:39.1]} 41. Qc3 {[%clk 0:03:33.1]} 41... Qb7+ {[%clk 0:01:16]} 42. f3 {[%clk 0:03:18.8]} 42... Kh5 {[%clk 0:00:59.7]} 43. Qh8+ {[%clk 0:03:14.2]} 43... Kg6 {[%clk 0:00:54.5]} 44. Qe8+ {[%clk 0:03:09.7]} 44... Kh6 {[%clk 0:00:41.7]} 45. Qe6+ {[%clk 0:02:56.6]} 45... Kg7 {[%clk 0:00:23.1]} 46. Qe5+ {[%clk 0:02:50]} 46... Kg6 {[%clk 0:00:12.4]} 47. Qe4+ {[%clk 0:02:46.4]} 47... Qxe4 {[%clk 0:00:09.4]} 48. fxe4 {[%clk 0:02:42.9]} 48... a5 {[%clk 0:00:06.4]} 49. b4 {[%clk 0:02:36.2]} 1-0

[Event "Live Chess"]
[Site "Chess.com"]
[Date "2011.01.04"]
[Round "-"]
[White "hipposcottimus"]
[Black "Peay"]
[Result "1-0"]
[CurrentPosition "3Q4/7k/2p5/1p1p4/8/N5P1/P5PK/4r3 b - -"]
[Timezone "UTC"]
[ECO "C41"]
[ECOUrl "https://www.chess.com/openings/Philidor-Defense-3.d4-Bg4"]
[UTCDate "2011.01.04"]
[UTCTime "00:12:33"]
[WhiteElo "1400"]
[BlackElo "1241"]
[TimeControl "600"]
[Termination "hipposcottimus won on time"]
[StartTime "00:12:33"]
[EndDate "2011.01.04"]
[EndTime "00:27:58"]
[Link "https://www.chess.com/game/live/83958484"]

1. e4 {[%clk 0:10:00]} 1... e5 {[%clk 0:10:00]} 2. Nf3 {[%clk 0:09:58.2]} 2... d6 {[%clk 0:09:57.5]} 3. d4 {[%clk 0:09:54.3]} 3... Bg4 {[%clk 0:09:55.2]} 4. Be2 {[%clk 0:09:50.4]} 4... Bxf3 {[%clk 0:09:48]} 5. Bxf3 {[%clk 0:09:47.9]} 5... Nc6 {[%clk 0:09:45.6]} 6. c3 {[%clk 0:09:32]} 6... h6 {[%clk 0:09:37.2]} 7. b4 {[%clk 0:09:28.6]} 7... b5 {[%clk 0:09:32]} 8. dxe5 {[%clk 0:09:25.6]} 8... Nxe5 {[%clk 0:09:27.9]} 9. Bf4 {[%clk 0:09:18.9]} 9... f6 {[%clk 0:09:26.4]} 10. Bxe5 {[%clk 0:09:16.2]} 10... fxe5 {[%clk 0:09:23.7]} 11. Bh5+ {[%clk 0:09:14.2]} 11... Ke7 {[%clk 0:09:09.7]} 12. Qf3 {[%clk 0:09:08.4]} 12... Nf6 {[%clk 0:09:07.4]} 13. Bg6 {[%clk 0:08:59.2]} 13... Qd7 {[%clk 0:09:00.8]} 14. Bf5 {[%clk 0:08:53.8]} 14... Qe8 {[%clk 0:08:53.2]} 15. Na3 {[%clk 0:08:47.8]} 15... a6 {[%clk 0:08:49.7]} 16. c4 {[%clk 0:08:45.2]} 16... g6 {[%clk 0:08:42.7]} 17. Bh3 {[%clk 0:08:17.7]} 17... c6 {[%clk 0:08:39.5]} 18. cxb5 {[%clk 0:08:12.3]} 18... axb5 {[%clk 0:08:36]} 19. O-O {[%clk 0:08:09.4]} 19... Ra4 {[%clk 0:08:26.3]} 20. Rab1 {[%clk 0:07:56.7]} 20... Qa8 {[%clk 0:08:08.7]} 21. Rb3 {[%clk 0:07:32.5]} 21... Kf7 {[%clk 0:07:57.7]} 22. Rd1 {[%clk 0:07:22.2]} 22... Be7 {[%clk 0:07:53.2]} 23. Qg3 {[%clk 0:06:54.2]} 23... Kg7 {[%clk 0:07:50.9]} 24. Bf5 {[%clk 0:06:48.4]} 24... g5 {[%clk 0:07:44.6]} 25. Rf1 {[%clk 0:06:35]} 25... Nh5 {[%clk 0:07:39.3]} 26. Qg4 {[%clk 0:06:27.3]} 26... Nf6 {[%clk 0:07:29.8]} 27. Qh3 {[%clk 0:06:22.3]} 27... Rf8 {[%clk 0:07:05.3]} 28. Rg3 {[%clk 0:06:16.2]} 28... d5 {[%clk 0:06:53.8]} 29. f4 {[%clk 0:06:11.9]} 29... Rxb4 {[%clk 0:06:36.9]} 30. fxe5 {[%clk 0:06:08.7]} 30... Nxe4 {[%clk 0:06:31.5]} 31. Qh5 {[%clk 0:05:49]} 31... Qa7+ {[%clk 0:06:11.5]} 32. Kh1 {[%clk 0:05:36.3]} 32... Rxf5 {[%clk 0:06:06.7]} 33. Rxf5 {[%clk 0:05:24.9]} 33... Nxg3+ {[%clk 0:05:29]} 34. hxg3 {[%clk 0:05:20.4]} 34... Bc5 {[%clk 0:05:08.9]} 35. Rf6 {[%clk 0:04:53.8]} 35... Qe7 {[%clk 0:03:05.8]} 36. Qxh6+ {[%clk 0:04:40.5]} 36... Kg8 {[%clk 0:02:59.5]} 37. Qxg5+ {[%clk 0:04:21.1]} 37... Qg7 {[%clk 0:02:56.2]} 38. Rg6 {[%clk 0:04:07.2]} 38... Bf8 {[%clk 0:02:47.2]} 39. e6 {[%clk 0:03:47.7]} 39... Re4 {[%clk 0:02:44.8]} 40. Rxg7+ {[%clk 0:03:35.1]} 40... Bxg7 {[%clk 0:02:41.4]} 41. Qd8+ {[%clk 0:03:31.7]} 41... Kh7 {[%clk 0:02:38.3]} 42. e7 {[%clk 0:03:25]} 42... Bf6 {[%clk 0:02:35.2]} 43. e8=Q {[%clk 0:02:49.9]} 43... Bxd8 {[%clk 0:02:28.1]} 44. Qxd8 {[%clk 0:02:41.9]} 44... Re1+ {[%clk 0:02:18.6]} 45. Kh2 {[%clk 0:02:38.9]} 1-0